bitfinex/quotes_ETHUSD_20220309
["timestamp","ask_amount","ask_price","bid_price","bid_amount"]
[1646795534589,0.89995291,2628.1,2627.6,1.34756506]
[1646795535589,0.89666656,2628.1,2627.6,1.34756506]
[1646795535788,0.89995316,2628.1,2627.6,1.34756506]
[1646795535988,1.19995316,2628.1,2627.6,1.34756506]
[1646795536189,0.89666656,2628.0,2627.6,1.34756506]
[1646795536390,0.19704676,2628.0,2627.5,2.2]
[1646795536587,1.0029064,2628.1,2627.6,1.3497496]
[1646795536588,0.19704676,2627.9,2627.6,1.3497496]
[1646795536788,0.19704676,2627.8,2627.6,1.3497496]
[1646795536994,0.19704676,2628.0,2627.6,1.3497496]
[1646795537391,0.89666656,2628.0,2627.6,1.3497496]
[1646795538726,0.89666656,2628.0,2627.6,1.34887021]
[1646795539528,0.6996198,2627.9,2627.6,1.34887021]
[1646795539724,0.94792328,2627.8,2627.5,1.85362769]
[1646795539923,0.94792328,2627.8,2627.5,1.47319117]
[1646795540129,0.6996198,2627.6,2626.6,0.68621401]
[1646795540327,0.6996198,2627.6,2626.2,0.68621401]
[1646795540328,0.69945564,2627.2,2626.2,0.68621401]
[1646795540525,0.69945564,2627.2,2626.0,1.40606519]
[1646795540526,1.08165564,2627.0,2626.0,1.40606519]
[1646795540728,1.08165564,2627.0,2626.0,0.6908853]
[1646795540729,4.7322,2626.9,2626.0,0.6908853]
[1646795540923,0.88744901,2626.7,2626.0,0.6908853]
[1646795541125,4.05,2626.6,2626.0,0.6908853]
[1646795541428,4.05,2626.6,2626.0,0.00467129]
[1646795541626,4.05,2626.6,2625.8,2.96881401]
[1646795541873,4.05,2626.6,2626.0,0.00470389]
[1646795542273,0.55,2626.6,2626.2,1.09558573]
[1646795542875,0.3,2626.7,2626.2,1.09558573]
[1646795543276,4.93694433,2626.8,2626.0,0.00470394]
[1646795543879,5.48694433,2626.8,2626.0,0.00470394]
[1646795544078,5.48694433,2626.8,2625.7,4.11857401]
[1646795544277,5.48694433,2626.8,2626.0,0.00470394]
[1646795544477,0.88607182,2626.5,2626.0,0.91496766]
[1646795544877,5.48694433,2626.8,2626.0,0.91496766]
[1646795545281,1.2222,2626.9,2626.0,0.91026372]
[1646795545481,0.89502315,2627.3,2626.0,3.12581334]
[1646795545735,0.89502315,2627.3,2626.4,1.06841401]
[1646795545736,0.19556751,2627.3,2626.4,1.06841401]
[1646795545934,0.00096,2627.6,2627.2,1.09413473]
[1646795546131,1.10385387,2627.7,2627.2,2.06953473]
[1646795546535,0.69945564,2627.9,2627.2,2.06953473]
[1646795546733,3.5,2627.8,2627.2,2.06953473]
[1646795547134,4.19945564,2627.8,2627.2,0.9754]
[1646795547440,0.69945564,2627.7,2626.5,2.3156]
[1646795547634,0.69945564,2627.7,2626.4,0.68621401]
[1646795547635,3.5,2627.6,2626.4,0.68621401]
[1646795547837,3.5,2627.6,2626.5,1.06841401]
[1646795548033,3.5,2627.6,2626.5,0.68621401]
[1646795548233,0.99890695,2627.4,2626.8,1.20281089]
[1646795548435,3.5,2627.6,2626.8,1.20281089]
[1646795549236,3.8,2627.6,2626.8,1.20281089]
[1646795550078,0.90285395,2627.5,2626.5,0.95204]
[1646795550276,3.8822,2627.4,2626.4,0.68621401]
[1646795550474,3.8822,2627.4,2626.2,1.1409]
[1646795550475,0.9322,2627.3,2626.2,1.82711401]
[1646795550677,3.5,2627.2,2626.2,0.68621401]
[1646795551278,0.55,2627.3,2626.5,1.22789608]
[1646795551480,1.32269263,2627.5,2626.5,1.22789608]
[1646795551680,0.87712512,2627.5,2626.5,1.22789608]
[1646795551883,0.57712512,2627.5,2626.5,1.22789608]
[1646795552080,6.1642,2627.6,2626.5,1.22789608]
[1646795552081,6.1642,2627.6,2626.5,1.91411009]
[1646795552281,7.68525406,2627.6,2627.0,0.87312058]
[1646795552478,5.02105406,2627.6,2627.0,0.87312058]
[1646795553147,4.06733916,2627.6,2627.0,0.87312058]
[1646795553749,0.56733916,2627.6,2627.0,0.87312058]
[1646795557987,1.14543502,2627.4,2626.5,2.2686]
[1646795558587,3.5,2627.3,2626.6,1.299674]
[1646795558780,0.24317072,2627.2,2626.6,1.299674]
[1646795558980,0.24317072,2627.2,2626.2,1.98588801]
[1646795559181,1.03769162,2627.0,2626.5,1.17191068]
[1646795559381,0.24317072,2626.9,2626.6,1.299674]
[1646795559581,3.5,2627.3,2626.6,1.299674]
[1646795559781,0.24317726,2627.2,2626.6,1.299674]
[1646795559982,0.24317726,2627.1,2626.6,1.299674]
[1646795560184,0.7197,2627.2,2626.3,1.299674]
[1646795560489,0.19556751,2627.0,2626.4,1.299674]
[1646795560723,0.79317726,2626.9,2626.0,0.00467382]
[1646795560926,3.74317726,2626.8,2626.1,1.29976598]
[1646795561225,3.74317726,2626.8,2625.8,2.3721]
[1646795561226,1.07197921,2626.6,2625.8,2.3721]
[1646795561424,4.05,2626.8,2625.7,2.48]
[1646795561628,0.55,2626.8,2625.7,2.48]
[1646795561827,0.55,2626.8,2625.7,3.16621401]
[1646795562326,0.55,2626.8,2626.1,1.19135715]
[1646795562526,1.10640659,2626.7,2626.1,1.19135715]
[1646795562927,4.05,2627.0,2626.1,1.19135715]
[1646795563828,1.11424487,2626.7,2626.1,1.19135715]
[1646795564029,1.11424487,2626.7,2626.0,0.0050223]
[1646795564471,1.11424487,2626.7,2625.6,0.68621401]
[1646795564676,1.11424487,2626.7,2625.6,1.06841401]
[1646795564874,1.11424487,2626.7,2625.7,0.68621401]
[1646795565074,1.11424487,2626.7,2625.8,1.20387085]
[1646795565675,5.3846369,2627.0,2625.8,1.20387085]
[1646795565676,0.89212065,2626.3,2625.8,1.20387085]
[1646795565879,3.5,2626.7,2626.4,0.61220492]
[1646795566176,0.97077491,2626.6,2626.4,0.61220492]
[1646795566476,4.05,2626.5,2626.4,0.61220492]
[1646795566675,0.55,2626.5,2626.4,0.61220492]
[1646795567878,4.05,2626.5,2626.4,0.61220492]
[1646795571733,0.55,2626.5,2626.4,0.61220492]
[1646795572574,0.97077491,2626.6,2626.4,0.61220492]
[1646795574180,0.5580346,2626.8,2626.4,0.61220492]
[1646795575620,0.5580346,2626.8,2626.5,0.9966253]
[1646795576620,0.5580346,2626.8,2626.4,0.61220492]
[1646795579772,0.952371,2627.1,2626.4,0.61220492]
[1646795580172,1.252371,2627.1,2626.4,0.61220492]
[1646795580974,2.24190725,2627.1,2626.4,0.61220492]
[1646795581179,0.26546445,2627.0,2626.5,1.27683083]
[1646795581576,0.26546445,2627.0,2626.7,1.16970332]
[1646795582177,0.26392622,2627.0,2626.7,1.16970332]
[1646795583133,2.8129,2627.3,2626.7,1.16970332]
[1646795583337,0.00096,2627.8,2626.7,1.55190332]
[1646795583537,0.00096,2627.8,2626.7,2.23811733]
[1646795583736,0.00096,2627.8,2626.8,0.1902]
[1646795583940,0.00096,2627.8,2627.6,1.18208532]
[1646795583941,0.57476448,2627.8,2627.6,1.18208532]
[1646795584141,1.5426,2628.2,2627.6,1.18208532]
[1646795584338,0.15635297,2628.3,2627.6,1.18208532]
[1646795584537,0.69945564,2628.7,2627.7,5.0]
[1646795584740,0.00096,2628.6,2627.9,0.3822]
[1646795584939,0.01893648,2628.9,2628.0,4.8822]
[1646795585137,0.01797648,2628.9,2628.7,0.99076412]
[1646795585636,0.01797648,2628.9,2628.3,3.8822]
[1646795586037,0.01797648,2628.9,2628.3,0.3822]
[1646795586242,0.01797648,2628.9,2628.3,3.8822]
[1646795586444,0.0011319,2628.7,2628.6,0.3822]
[1646795586641,0.01797648,2628.9,2628.7,3.89191929]
[1646795586904,0.01797648,2628.9,2628.7,0.89191929]
[1646795588903,0.01797648,2628.9,2628.7,0.00074435]
[1646795591128,0.02198669,2628.9,2628.7,0.00074435]
[1646795592130,0.01797648,2628.9,2628.7,0.00074435]
[1646795592731,0.02198669,2628.9,2628.7,0.00074435]
[1646795593335,0.01797648,2628.9,2628.7,0.00074435]
[1646795593638,0.02198669,2628.9,2628.7,0.00074435]
[1646795594240,0.02198669,2628.9,2628.8,1.19831481]
[1646795594677,0.01797648,2628.9,2628.8,1.19831481]
[1646795594875,0.02198669,2628.9,2628.8,1.19831481]
[1646795595277,0.02198669,2628.9,2628.7,0.00074435]
[1646795595876,0.01797648,2628.9,2628.7,0.00074435]
[1646795596077,0.02110985,2628.9,2628.7,0.00074435]
[1646795596977,0.01797648,2628.9,2628.7,0.00074435]
[1646795597183,0.01894004,2628.9,2628.7,0.00074435]
[1646795597383,0.01894004,2628.9,2628.8,0.88299614]
[1646795598228,0.01797648,2628.9,2628.8,0.88299614]
[1646795598729,0.01797648,2628.9,2628.7,0.00074435]
[1646795599830,0.02110985,2628.9,2628.7,0.00074435]
[1646795600431,1.12707128,2628.9,2628.7,0.00074435]
[1646795600631,1.12393791,2628.9,2628.7,0.00074435]
[1646795600831,1.12773538,2628.9,2628.7,0.00074435]
[1646795601232,0.02177395,2628.9,2628.7,0.00074435]
[1646795601890,0.01797648,2628.9,2628.7,0.00074435]
[1646795602081,0.02177395,2628.9,2628.7,0.00074435]
[1646795603080,0.01797648,2628.9,2628.7,0.00074435]
[1646795603279,0.02177395,2628.9,2628.7,0.00074435]
[1646795604181,0.01797648,2628.9,2628.7,0.00074435]
[1646795604580,0.02114346,2628.9,2628.7,0.00074435]
[1646795605383,0.01797648,2628.9,2628.7,0.00074435]
[1646795605630,0.02114346,2628.9,2628.7,0.00074435]
[1646795606629,0.01797648,2628.9,2628.7,0.00074435]
[1646795606932,0.02114346,2628.9,2628.7,0.00074435]
[1646795607828,0.01797648,2628.9,2628.7,0.00074435]
[1646795608028,0.02127889,2628.9,2628.7,0.00074435]
[1646795608433,0.99419577,2628.7,2628.2,0.92817063]
[1646795608634,0.0008436,2628.7,2628.2,0.92817063]
[1646795609033,0.0008436,2628.7,2628.3,3.5]
[1646795609234,0.00330241,2628.6,2628.2,0.92817063]
[1646795610277,0.0008436,2628.7,2628.3,3.5]
[1646795610479,0.00330241,2628.5,2628.3,3.5]
[1646795610685,0.00330241,2628.5,2628.3,3.8804]
[1646795610883,0.00330241,2628.5,2628.4,3.5]
[1646795611482,0.0008436,2628.7,2628.4,3.5]
[1646795611683,0.00327219,2628.6,2628.3,0.3804]
[1646795611885,0.00327219,2628.6,2628.4,1.15148123]
[1646795612686,0.0008436,2628.7,2628.4,1.15148123]
[1646795612886,0.00493052,2629.2,2628.6,5.3804]
[1646795613133,0.01549052,2629.2,2628.8,0.3804]
[1646795613535,0.01549052,2629.2,2628.9,3.5]
[1646795613738,0.01549052,2629.2,2628.9,3.8804]
[1646795614037,0.01549052,2629.2,2629.1,0.3804]
[1646795614240,0.0155936,2629.9,2629.3,1.33137]
[1646795614441,0.0155936,2629.9,2629.4,3.8804]
[1646795614745,0.04206333,2629.7,2629.4,0.3804]
[1646795614940,0.04206333,2629.7,2629.4,3.8804]
[1646795615238,0.0155936,2629.9,2629.4,3.8804]
[1646795615239,0.04149491,2629.6,2629.5,1.19198659]
[1646795615838,0.04149491,2629.6,2629.5,4.69198659]
[1646795616038,0.04149491,2629.6,2629.5,1.19198659]
[1646795616240,0.04149491,2629.6,2629.3,1.90169]
[1646795616440,0.04149491,2629.6,2629.1,0.3804]
[1646795616640,0.04092648,2629.5,2628.8,3.8]
[1646795616886,0.04092648,2629.5,2628.9,0.95114]
[1646795617078,0.04035806,2629.4,2628.9,0.95114]
[1646795617280,0.04035806,2629.4,2629.3,1.22697021]
[1646795617481,0.04149491,2629.6,2629.3,1.22697021]
[1646795617680,0.04035806,2629.4,2629.3,1.22697021]
[1646795617880,0.04092648,2629.5,2629.3,1.22697021]
[1646795618079,0.04035806,2629.4,2629.3,1.22697021]
[1646795618282,0.01673568,2630.1,2629.5,5.0]
[1646795618283,0.01577568,2630.1,2629.5,5.0]
[1646795618486,1.6669633,2630.4,2629.7,5.0]
[1646795618487,0.0201184,2630.4,2629.7,5.0]
[1646795618688,0.0255284,2630.4,2630.3,1.12344866]
[1646795618882,0.0255284,2630.4,2630.3,0.7266]
[1646795619282,0.0255284,2630.4,2630.3,4.2266]
[1646795619481,0.0255284,2630.4,2630.3,0.7266]
[1646795619885,0.0255284,2630.4,2629.7,4.32636]
[1646795620082,0.87462465,2630.3,2629.2,5.90022]
[1646795620285,0.87462465,2630.3,2629.1,3.3178]
[1646795620286,0.26336346,2630.2,2629.1,3.3178]
[1646795620485,0.26336346,2630.2,2629.2,3.5]
[1646795620736,0.19556751,2630.1,2629.2,3.5]
[1646795620930,0.26363798,2630.0,2629.1,2.3178]
[1646795621137,0.98859975,2629.6,2629.1,0.94495289]
[1646795621336,0.49556751,2630.1,2629.1,0.94495289]
[1646795621541,0.26361343,2630.0,2629.1,0.94495289]
[1646795622140,1.1663184,2630.2,2629.1,0.94495289]
[1646795622339,1.39747307,2630.1,2629.6,1.1264329]
[1646795622545,0.00396465,2629.8,2629.6,1.1264329]
[1646795623541,0.26370241,2630.1,2629.6,1.1264329]
[1646795624390,0.26370241,2630.1,2629.6,1.0264329]
[1646795625088,0.26370241,2630.1,2629.2,0.00388391]
[1646795625679,0.56370241,2630.1,2629.2,0.00388391]
[1646795625879,0.26370241,2630.0,2629.0,4.77472732]
[1646795626080,0.26370241,2629.9,2629.5,1.01049181]
[1646795626280,0.26370241,2629.8,2629.5,1.01049181]
[1646795626482,0.26370241,2629.7,2629.5,1.01049181]
[1646795626789,0.0201184,2630.2,2629.5,1.01049181]
[1646795626982,0.25932221,2630.1,2629.5,1.01049181]
[1646795627486,0.00397415,2629.8,2629.5,1.01049181]
[1646795628351,0.25932221,2630.1,2629.5,1.01049181]
[1646795629149,0.25932221,2630.1,2629.9,1.19852388]
[1646795629352,0.25932221,2630.1,2629.9,0.79589496]
[1646795629550,0.25932221,2630.1,2629.1,5.8124]
[1646795629751,0.25932221,2630.1,2629.2,1.2884137]
[1646795629752,0.0039743,2629.9,2629.2,1.2884137]
[1646795629951,0.0039743,2629.9,2629.3,1.28333523]
[1646795630555,0.0039743,2629.9,2629.5,0.89639858]
[1646795630753,0.25932221,2630.0,2629.5,0.89639858]
[1646795630953,0.0201184,2630.2,2629.5,0.89639858]
[1646795630954,0.00397415,2629.8,2629.5,0.89639858]
[1646795631155,0.26329636,2629.8,2629.5,0.89639858]
[1646795631355,0.00397415,2629.8,2629.5,0.89639858]
[1646795631756,0.00397415,2629.8,2629.6,3.5]
[1646795631984,0.25200753,2630.1,2629.5,0.89639858]
[1646795632183,0.00397423,2629.8,2629.6,1.2833547]
[1646795632386,0.00397423,2629.8,2629.3,0.9691708]
[1646795632583,0.00397423,2629.8,2629.4,4.78332145]
[1646795632784,0.00397423,2629.8,2629.5,1.28332145]
[1646795633189,0.25200753,2630.1,2629.9,1.10439745]
[1646795634188,0.25200753,2630.1,2629.3,3.5]
[1646795634388,0.25200753,2630.1,2629.4,1.28281096]
[1646795634589,0.25598183,2630.1,2629.4,1.28281096]
[1646795634790,0.25598183,2630.1,2629.2,0.00498334]
[1646795634989,0.25598183,2630.1,2629.3,1.28305445]
[1646795635190,0.9531527,2629.9,2629.4,0.94808628]
[1646795635390,0.25200753,2629.8,2629.4,0.94808628]
[1646795635634,0.0201184,2630.2,2629.4,0.94808628]
[1646795635931,0.0039743,2629.8,2629.4,0.94808628]
[1646795636740,1.10504655,2629.8,2629.1,2.3124]
[1646795636938,0.24750548,2629.7,2629.2,0.00498316]
[1646795637538,2.5,2629.6,2628.7,5.06888316]
[1646795637737,2.5,2629.6,2629.1,0.96244032]
[1646795638144,1.10504655,2629.8,2629.1,0.96244032]
[1646795638145,0.24759905,2629.5,2629.1,0.96244032]
[1646795638340,1.10504655,2629.8,2629.1,0.96244032]
[1646795638538,0.24764498,2629.7,2629.1,0.96244032]
[1646795638939,0.24764498,2629.7,2628.5,6.01]
[1646795639141,0.24764498,2629.7,2628.6,1.28820474]
[1646795639388,0.24884095,2629.7,2628.6,1.28820474]
[1646795640083,1.05913085,2629.4,2628.6,1.28820474]
[1646795640289,1.73953085,2629.4,2628.6,1.28820474]
[1646795640487,0.79774227,2629.3,2628.7,1.28820474]
[1646795640688,0.62814227,2629.2,2628.2,1.28820474]
[1646795640882,0.24774227,2629.1,2628.3,1.28884386]
[1646795641083,0.24774227,2629.1,2628.4,2.2854573]
[1646795641084,1.03921911,2628.9,2628.4,2.2854573]
[1646795641282,1.33921911,2628.9,2628.5,1.28884386]
[1646795641484,0.55,2629.2,2628.0,3.5]
[1646795641683,0.20877548,2629.4,2628.1,1.28884386]
[1646795641684,0.2477918,2629.1,2628.1,1.28884386]
[1646795641883,0.00096,2629.4,2628.2,4.18621401]
[1646795642082,3.5329,2629.6,2628.6,0.00507922]
[1646795642083,0.247747,2629.5,2628.6,0.00507922]
[1646795642283,0.247747,2629.5,2628.7,1.28884386]
[1646795642486,0.247747,2629.5,2629.2,0.90990666]
[1646795642884,0.247747,2629.5,2628.2,3.5]
[1646795643136,0.797747,2629.5,2629.0,0.00507863]
[1646795643342,0.247747,2629.4,2629.0,0.00507863]
[1646795643737,0.247747,2629.4,2629.2,1.07214593]
[1646795644159,0.00398626,2629.7,2629.2,1.07214593]
[1646795644343,0.00398626,2629.7,2629.3,3.5]
[1646795644539,0.00398626,2629.7,2629.2,1.07214593]
[1646795644938,0.00398626,2629.7,2629.6,1.10217861]
[1646795645140,1.2242,2630.1,2629.6,1.10217861]
[1646795645341,1.16720446,2630.2,2629.6,1.10217861]
[1646795645539,0.00398664,2629.7,2629.6,1.10217861]
[1646795646342,1.5635477,2630.2,2629.1,2.341]
[1646795646343,1.16720446,2630.2,2629.1,2.341]
[1646795646540,0.00398676,2629.8,2629.2,3.5]
[1646795646739,0.00398676,2629.8,2629.1,2.34569179]
[1646795646982,0.00398676,2629.8,2629.2,3.5]
[1646795647183,0.00398676,2629.8,2629.1,2.34569179]
[1646795647485,1.54856446,2630.2,2629.1,2.341]
[1646795647686,1.8666601,2630.2,2629.7,1.09559058]
[1646795647887,1.88260365,2630.2,2629.7,1.09559058]
[1646795648088,0.03606195,2630.2,2629.1,2.34569172]
[1646795648288,0.73551759,2630.2,2629.1,2.34569172]
[1646795648493,1.11591759,2630.2,2629.1,2.34569172]
[1646795648688,1.11591759,2630.2,2629.1,2.341]
[1646795648889,1.09997404,2630.2,2629.1,2.341]
[1646795649088,0.00398676,2629.8,2629.1,2.34569179]
[1646795649291,0.00398676,2629.8,2629.5,1.06921937]
[1646795649991,2.05131804,2630.2,2629.5,1.06921937]
[1646795650192,0.00398676,2629.8,2629.5,1.06921937]
[1646795651237,0.71957404,2630.2,2629.5,1.06921937]
[1646795651437,0.00120033,2629.8,2629.5,1.06921937]
[1646795651638,0.00120033,2629.8,2629.0,3.8804]
[1646795652238,0.0201184,2630.2,2629.0,15.5004]
[1646795652639,0.00120027,2629.7,2629.0,16.45148]
[1646795652839,0.0249185,2630.2,2630.0,1.08385824]
[1646795653642,0.0201184,2630.2,2630.0,1.08385824]
[1646795654709,0.0201184,2630.2,2630.0,1.08177617]
[1646795655008,0.02410216,2630.2,2630.0,1.08177617]
[1646795656008,0.0201184,2630.2,2629.7,0.00082271]
[1646795656217,0.72272597,2630.2,2629.7,0.00082271]
[1646795656815,0.02327033,2630.2,2629.7,0.00082271]
[1646795657010,0.72272597,2630.2,2629.7,1.11123868]
[1646795657210,0.71957404,2630.2,2629.7,1.11123868]
[1646795657411,0.70260757,2630.1,2629.7,1.11123868]
[1646795657615,0.00315193,2630.1,2629.7,1.11123868]
[1646795658256,0.70260757,2630.1,2629.7,1.11123868]
[1646795658455,0.69945564,2630.0,2629.7,1.11123868]
[1646795658759,0.00315193,2630.0,2629.7,1.11123868]
[1646795659561,0.69945564,2630.1,2629.7,1.11123868]
[1646795659757,0.00315193,2630.0,2629.7,1.11123868]
[1646795660763,0.71957404,2630.2,2629.7,1.11123868]
[1646795660960,0.00327935,2630.0,2629.7,1.11123868]
[1646795661885,1.85351782,2630.2,2629.7,1.11123868]
[1646795662091,1.85351782,2630.2,2629.7,0.00082271]
[1646795662295,0.00327935,2630.0,2629.7,0.00082271]
[1646795663090,1.85351782,2630.2,2629.7,0.00082271]
[1646795663091,0.69945564,2630.1,2629.7,0.00082271]
[1646795663490,0.00327935,2630.0,2629.7,0.00082271]
[1646795664095,0.00327935,2630.0,2629.7,1.29962438]
[1646795664294,0.24437004,2630.0,2629.8,1.29880167]
[1646795664492,0.24437004,2629.9,2629.7,0.00082271]
[1646795664692,0.24437004,2629.8,2629.7,1.29995573]
[1646795665292,0.00325676,2630.0,2629.7,1.29995573]
[1646795665492,0.24437004,2630.1,2629.7,1.29995573]
[1646795665744,0.00325676,2629.9,2629.7,1.29995573]
[1646795666749,0.24437004,2630.1,2629.7,1.29995573]
[1646795666944,0.00325676,2629.9,2629.7,1.29995573]
[1646795667945,1.3839908,2630.1,2629.7,1.29995573]
[1646795668146,0.24437004,2630.0,2629.7,1.29995573]
[1646795668344,0.0032583,2629.9,2629.7,1.29995573]
[1646795668745,0.24762834,2629.9,2629.7,1.29995573]
[1646795668944,0.24437004,2629.8,2629.7,1.29995573]
[1646795669590,0.0032583,2629.9,2629.7,1.29995573]
[1646795670293,0.24437004,2630.1,2629.7,1.29995573]
[1646795670697,0.0032583,2629.9,2629.7,1.29995573]
[1646795671495,0.24437004,2630.1,2629.7,1.29995573]
[1646795671696,0.96394408,2630.2,2629.7,1.29995573]
[1646795671901,0.00325743,2629.9,2629.7,1.29995573]
[1646795672696,0.24437004,2630.1,2629.7,1.29995573]
[1646795672903,0.96394408,2630.2,2629.7,1.29995573]
[1646795673151,0.00325743,2629.9,2629.8,1.16084301]
[1646795673343,0.00325743,2629.9,2629.8,2.45997603]
[1646795673950,0.24437004,2630.1,2629.8,2.45997603]
[1646795674149,0.24762747,2630.0,2629.8,1.16084301]
[1646795674349,0.24437004,2629.9,2629.8,1.16084301]
[1646795674749,0.24437004,2629.9,2629.7,0.00082271]
[1646795674953,0.24519269,2629.8,2629.7,1.29988401]
[1646795675149,0.00082265,2629.8,2629.7,1.29988401]
[1646795675750,0.00082265,2629.8,2629.7,1.05784436]
[1646795675949,0.00082265,2629.8,2629.7,2.35690566]
[1646795678196,0.24508365,2629.8,2629.7,2.35690566]
[1646795678396,0.244261,2630.1,2629.8,4.5]
[1646795678601,0.01082,2630.4,2630.0,5.0]
[1646795678799,0.69870465,2630.6,2630.1,5.0]
[1646795679002,0.17983975,2630.5,2630.2,1.2990613]
[1646795679199,0.00672112,2630.7,2630.4,0.3804]
[1646795679398,0.00672112,2630.7,2630.5,5.7294613]
[1646795679598,0.00672112,2630.7,2630.6,5.1794613]
[1646795679802,0.00672112,2630.7,2630.6,5.7294613]
[1646795679999,0.00672112,2630.7,2630.6,2.2294613]
[1646795680201,0.00672112,2630.7,2630.6,13.2994613]
[1646795680400,0.00672112,2630.7,2630.6,1.2990613]
[1646795682666,0.01580161,2631.2,2630.9,11.62]
[1646795682866,0.01580161,2631.2,2631.1,0.3804]
[1646795683067,0.01580161,2631.2,2631.1,4.4304]
[1646795683365,0.01580161,2631.2,2631.1,0.9304]
[1646795683564,0.01956132,2631.3,2631.1,5.61057631]
[1646795683864,0.03140416,2631.4,2631.3,3.8804]
[1646795683865,0.01014336,2631.4,2631.3,3.8804]
[1646795684064,0.01014336,2631.4,2631.3,4.89264445]
[1646795684269,0.02028672,2631.6,2631.5,0.3804]
[1646795684494,0.02028672,2631.6,2631.5,3.8804]
[1646795684895,0.02028672,2631.6,2631.5,3.87623586]
[1646795685198,0.02028672,2631.6,2631.5,0.37623586]
[1646795685395,0.02028672,2631.6,2631.5,3.5]
[1646795685794,0.02028672,2631.6,2631.3,5.06224445]
[1646795685996,0.02028672,2631.6,2631.3,0.55]
[1646795686195,0.02028672,2631.6,2631.0,1.2083]
[1646795686395,0.02028672,2631.6,2631.1,3.5]
[1646795686596,0.02028672,2631.6,2631.1,0.3804]
[1646795686799,0.02028672,2631.6,2631.1,0.9304]
[1646795686999,0.02028672,2631.6,2631.2,1.08903445]
[1646795687400,0.0012734,2631.5,2631.2,1.08903445]
[1646795688251,0.02028672,2631.6,2631.2,1.08903445]
[1646795688452,0.02028672,2631.6,2631.3,3.8804]
[1646795688655,0.01580161,2631.9,2631.4,5.0]
[1646795688856,0.0229862,2632.1,2631.5,9.4304]
[1646795689054,0.0229862,2632.1,2631.7,0.3804]
[1646795689252,0.0229862,2632.1,2631.8,0.55]
[1646795689855,0.0229862,2632.1,2631.8,4.05]
[1646795690054,0.0229862,2632.1,2631.9,3.5]
[1646795690360,1.15106874,2632.8,2631.9,5.94880743]
[1646795690361,0.90575066,2632.4,2631.9,5.94880743]
[1646795690553,0.90575066,2632.4,2631.9,0.55]
[1646795690766,0.90575066,2632.4,2631.5,1.1484]
[1646795690954,0.90575066,2632.4,2631.3,5.9419]
[1646795691155,0.3804,2632.3,2631.3,1.0]
[1646795691355,0.90575066,2632.4,2630.9,0.55]
[1646795691553,1.138,2632.3,2631.1,1.60622783]
[1646795691996,1.138,2632.3,2631.1,2.17618783]
[1646795692195,1.138,2632.3,2631.5,0.00402527]
[1646795692496,0.92666193,2632.1,2631.5,1.23159391]
[1646795692695,0.92666193,2632.1,2631.5,1.61199391]
[1646795692899,0.3,2632.4,2631.5,1.61199391]
[1646795693094,0.3,2632.4,2631.5,1.60796864]
[1646795693295,0.32485084,2632.6,2631.5,1.60796864]
[1646795693495,0.00390147,2632.0,2631.5,1.61316458]
[1646795694397,0.02581084,2632.6,2631.5,1.60796864]
[1646795694595,0.02581084,2632.6,2631.8,0.95011]
[1646795694596,0.02485084,2632.6,2631.8,0.95011]
[1646795694800,0.00390139,2632.0,2631.8,0.95011]
[1646795695002,0.00390139,2632.0,2631.9,1.30716468]
[1646795695640,0.02485084,2632.6,2631.9,1.30716468]
[1646795695839,0.02485084,2632.6,2631.9,0.92676468]
[1646795696047,0.00390162,2632.1,2631.5,0.00480291]
[1646795696245,0.00390162,2632.1,2631.5,0.95500291]
[1646795696447,0.00390162,2632.1,2631.5,1.90517291]
[1646795696944,0.02485084,2632.6,2631.9,1.01128006]
[1646795697146,0.00390147,2632.0,2631.9,1.01128006]
[1646795697345,0.02485084,2632.6,2632.0,3.00292816]
[1646795697948,0.02485084,2632.6,2632.0,0.00292816]
[1646795698149,1.09679186,2632.5,2632.0,0.00292816]
[1646795699149,3.5,2632.4,2632.0,0.00292816]
[1646795699403,1.09679186,2632.5,2632.0,0.00292816]
[1646795701909,0.00117214,2632.4,2632.0,0.00292816]
[1646795702708,1.09679186,2632.5,2632.0,1.09572012]
[1646795702906,0.02485084,2632.6,2632.0,1.09572012]
[1646795703148,0.00389186,2632.3,2632.0,0.00292816]
[1646795704149,0.02485084,2632.6,2632.0,0.00292816]
[1646795704350,0.00389186,2632.3,2632.0,0.97579959]
[1646795705145,1.03085936,2632.6,2632.0,0.97579959]
[1646795705547,0.00389186,2632.3,2632.0,0.97579959]
[1646795705752,0.00389186,2632.3,2632.0,1.92582959]
[1646795705948,0.00389186,2632.3,2632.0,0.97579959]
[1646795706350,0.02485084,2632.6,2632.0,0.97579959]
[1646795706550,1.07933012,2632.5,2632.0,0.97579959]
[1646795706749,0.00389186,2632.3,2632.0,0.00292816]
[1646795707597,3.5,2632.4,2632.0,0.00292816]
[1646795707795,1.07933012,2632.5,2632.0,0.00292816]
[1646795708196,3.5,2632.4,2632.0,0.00292816]
[1646795708403,0.20277773,2632.3,2632.0,0.00292816]
[1646795709199,0.15823152,2632.2,2632.0,0.00292816]
[1646795710200,0.16213242,2632.2,2632.0,0.00292816]
[1646795710849,1.1019133,2632.1,2632.0,0.00292816]
[1646795711056,6.07250202,2632.1,2632.0,2.816e-05]
[1646795711256,8.87685623,2632.1,2632.0,2.816e-05]
[1646795711449,13.10065623,2632.1,2632.0,2.816e-05]
[1646795711648,10.10065623,2632.1,2632.0,2.816e-05]
[1646795711848,13.10065623,2632.1,2632.0,2.816e-05]
[1646795712348,14.1547057,2632.1,2632.0,2.816e-05]
[1646795712549,13.10065623,2632.1,2632.0,2.816e-05]
[1646795712752,10.79331317,2632.1,2632.0,2.816e-05]
[1646795713148,24.41331317,2632.1,2632.0,2.816e-05]
[1646795713354,23.18653302,2632.1,2632.0,2.816e-05]
[1646795713655,26.18653302,2632.1,2632.0,2.816e-05]
[1646795714253,13.87387608,2632.1,2632.0,2.816e-05]
[1646795714496,25.6530676,2632.1,2632.0,2.816e-05]
[1646795714897,0.3804,2631.8,2630.0,1.1971]
[1646795715097,0.3804,2631.6,2630.1,1.32581145]
[1646795715296,0.3804,2631.4,2630.1,1.32581145]
[1646795715498,0.3804,2631.2,2630.1,1.32581145]
[1646795715697,0.6804,2631.0,2629.7,2.34662271]
[1646795715896,1.17527568,2630.7,2630.1,0.88470816]
[1646795716107,1.17527568,2630.7,2629.7,2.34662271]
[1646795716108,5.35567568,2630.7,2629.7,2.34662271]
[1646795716307,5.35567568,2630.7,2630.5,0.00520089]
[1646795716308,2.59077568,2630.7,2630.5,0.00520089]
[1646795716699,1.4155,2630.7,2630.5,0.00520089]
[1646795717103,1.1155,2630.7,2630.5,0.00520089]
[1646795717405,1.1155,2630.7,2629.7,0.00082271]
[1646795717406,0.00137759,2630.4,2629.7,0.00082271]
[1646795717600,0.00137759,2630.4,2630.1,1.0780832]
[1646795718261,0.38136,2630.9,2630.2,4.5]